bitfinex/quotes_SOLUSD_20241005
["timestamp","ask_amount","ask_price","bid_price","bid_amount"]
[1728086400751,0.12549,143.58,143.52,26.62684234]
[1728086401342,0.12549,143.58,143.53,22.621]
[1728086408967,0.25098,143.58,143.53,22.621]
[1728086410449,24.027864,143.58,143.53,22.621]
[1728086413452,0.25098,143.58,143.53,22.621]
[1728086413652,0.8554205,143.59,143.53,22.621]
[1728086415060,0.12549,143.58,143.53,22.621]
[1728086417264,0.8554205,143.59,143.53,33.14794234]
[1728086417768,0.8554205,143.59,143.56,16.1454]
[1728086417974,0.8554205,143.59,143.57,6.1219]
[1728086419350,0.8554205,143.59,143.57,18.04169447]
[1728086420074,0.8554205,143.59,143.57,16.64884234]
[1728086421479,0.12549,143.67,143.58,16.1454]
[1728086422866,0.25098,143.67,143.58,16.1454]
[1728086423469,0.12549,143.67,143.59,11.91951446]
[1728086424158,0.12549,143.67,143.59,10.52694234]
[1728086424966,1.2131856,143.7,143.6,46.044184]
[1728086425171,1.2131856,143.7,143.6,56.57112634]
[1728086425565,1.2131856,143.7,143.6,46.044184]
[1728086425779,0.8554205,143.73,143.61,17.53770079]
[1728086425987,0.8554205,143.73,143.61,16.1454]
[1728086426280,6.49560342,143.72,143.61,16.1454]
[1728086426467,13.48360342,143.72,143.61,16.1454]
[1728086427170,24.027864,143.71,143.61,16.1454]
[1728086427564,30.52346742,143.71,143.61,16.1454]
[1728086430379,6.9628,143.62,143.61,16.1454]
[1728086438384,6.9624,143.63,143.61,16.1454]
[1728086439779,6.9619,143.64,143.61,17.53781271]
[1728086440286,6.9619,143.64,143.61,16.1454]
[1728086445096,6.988,143.68,143.62,1.39225876]
[1728086445270,6.9609,143.66,143.62,8.35505876]
[1728086445893,6.988,143.68,143.62,8.35505876]
[1728086446099,6.9604,143.67,143.64,22.6232]
[1728086451000,25.18712477,143.72,143.64,22.6232]
[1728086451299,6.9609,143.66,143.64,22.6232]
[1728086461800,6.96,143.68,143.64,30.97701827]
[1728086462104,6.9599,143.68,143.64,30.97701827]
[1728086463313,6.9594,143.69,143.65,23.776884]
[1728086463495,6.9592,143.7,143.65,30.737884]
[1728086464111,6.988,143.72,143.66,8.35222097]
[1728086464112,6.9585,143.71,143.66,8.35222097]
[1728086465526,6.959,143.7,143.66,6.9605]
[1728086467103,18.2499205,143.73,143.64,22.6232]
[1728086467104,17.3966,143.71,143.64,22.6232]
[1728086467319,6.9613,143.65,143.64,22.6232]
[1728086470299,6.9613,143.65,143.64,16.5188]
[1728086471102,6.9628,143.62,143.61,15.918]
[1728086471290,6.9639,143.6,143.58,3.8003]
[1728086471496,34.7975,143.69,143.58,3.8003]
[1728086471497,6.9633,143.61,143.58,3.8003]
[1728086472324,0.12549,143.66,143.58,3.8003]
[1728086472630,6.9628,143.62,143.58,3.8003]
[1728086473309,0.25098,143.66,143.58,3.8003]
[1728086473510,6.9633,143.61,143.58,3.8003]
[1728086474301,0.12549,143.66,143.58,3.8003]
[1728086474506,6.9628,143.62,143.59,1.39250036]
[1728086474922,6.9624,143.63,143.59,1.39250036]
[1728086475235,6.9619,143.64,143.6,23.776884]
[1728086475412,6.9614,143.65,143.6,6.9635]
[1728086476408,6.9614,143.65,143.61,1.39228674]
[1728086476606,6.9614,143.65,143.61,30.740084]
[1728086479131,6.9609,143.66,143.61,30.740084]
[1728086479713,6.9609,143.66,143.62,6.9627]
[1728086481714,17.3978,143.7,143.62,6.9627]
[1728086483236,6.9609,143.66,143.62,6.9627]
[1728086485917,6.9609,143.66,143.63,15.918]
[1728086486132,6.9605,143.67,143.64,1.3921289]
[1728086486442,17.3978,143.7,143.63,22.8802]
[1728086486443,6.9599,143.68,143.65,1.39204526]
[1728086488256,6.9599,143.68,143.64,23.776884]
[1728086489047,17.3978,143.7,143.63,15.918]
[1728086489242,6.9613,143.66,143.63,15.918]
[1728086489546,6.9618,143.64,143.63,15.918]
[1728086490152,6.9615,143.65,143.63,15.918]
[1728086492034,6.9609,143.66,143.63,15.918]
[1728086492362,6.9604,143.67,143.64,1.39209006]
[1728086493461,6.9604,143.67,143.63,22.8801]
[1728086495958,6.9612,143.66,143.63,15.918]
[1728086496263,6.9614,143.65,143.63,15.918]
[1728086496759,17.3978,143.7,143.63,15.918]
[1728086497059,6.961,143.66,143.63,15.918]
[1728086497260,6.9604,143.67,143.63,15.918]
[1728086498064,6.9604,143.67,143.64,6.3806]
[1728086498662,6.9604,143.67,143.65,1.39203424]
[1728086499033,6.9604,143.67,143.64,6.3806]
[1728086510767,6.96,143.68,143.65,1.39203943]
[1728086513666,6.96,143.68,143.64,6.3806]
[1728086515356,6.9604,143.67,143.64,6.3806]
[1728086516273,6.9606,143.67,143.64,6.3806]
[1728086517368,17.3968,143.71,143.65,23.776884]
[1728086517576,6.9599,143.68,143.65,23.776884]
[1728086519351,6.9604,143.67,143.64,6.3806]
[1728086519858,17.3968,143.71,143.64,6.3806]
[1728086520070,6.9613,143.65,143.64,6.3806]
[1728086520578,17.3968,143.71,143.64,6.3806]
[1728086520579,6.9609,143.66,143.64,6.3806]
[1728086521172,17.3968,143.71,143.64,6.3806]
[1728086521375,6.9605,143.67,143.64,6.3806]
[1728086523363,18.18764148,143.72,143.65,23.776884]
[1728086523571,0.8554205,143.73,143.65,30.738184]
[1728086523572,6.9595,143.69,143.65,30.738184]
[1728086523755,6.9595,143.69,143.65,23.776884]
[1728086525477,6.959,143.7,143.65,30.737884]
[1728086526274,6.9595,143.69,143.65,30.737884]
[1728086526657,6.959,143.7,143.65,30.737884]
[1728086527067,6.959,143.7,143.66,6.9607]
[1728086527269,6.9585,143.71,143.67,17.83860604]
[1728086527856,7.8129205,143.73,143.69,6.4873]
[1728086528477,7.8129205,143.73,143.7,23.776884]
[1728086528688,0.8554205,143.73,143.7,23.776884]
[1728086529970,0.8554205,143.73,143.7,30.735784]
[1728086530565,0.8554205,143.73,143.71,16.2519]
[1728086531684,0.8554205,143.73,143.72,23.776884]
[1728086533861,0.8554205,143.73,143.72,30.734784]
[1728086534066,0.8554205,143.73,143.72,30.860274]
[1728086534690,0.8554205,143.73,143.72,42.90377665]
[1728086535275,6.9551,143.78,143.75,23.776884]
[1728086535587,6.9546,143.79,143.76,17.64278412]
[1728086535971,6.988,143.82,143.76,16.2519]
[1728086535972,6.9555,143.77,143.76,16.2519]
[1728086536165,6.9555,143.77,143.72,30.236764]
[1728086536166,6.988,143.82,143.72,22.4608]
[1728086537172,6.9563,143.76,143.72,22.4608]
[1728086537370,17.3876,143.79,143.72,22.4608]
[1728086537371,16.3876,143.79,143.73,23.776884]
[1728086537570,6.9559,143.77,143.73,23.776884]
[1728086537789,6.956,143.76,143.73,23.776884]
[1728086538791,6.9574,143.73,143.72,22.4608]
[1728086538982,16.3876,143.79,143.72,22.4608]
[1728086539188,6.9571,143.74,143.72,22.4608]
[1728086540193,6.9566,143.75,143.72,22.4608]
[1728086542476,6.9571,143.74,143.72,22.4608]
[1728086548372,16.3876,143.79,143.72,22.4608]
[1728086548576,6.9566,143.75,143.72,22.4608]
[1728086554203,6.9566,143.75,143.73,23.776884]
[1728086554389,6.9561,143.76,143.73,23.776884]
[1728086554902,6.4561,143.76,143.73,23.776884]
[1728086556396,24.027864,143.77,143.62,16.3772]
[1728086556600,17.397,143.71,143.62,16.3772]
[1728086557314,6.9618,143.64,143.62,16.3772]
[1728086558006,17.397,143.71,143.62,16.3772]
[1728086558301,6.9614,143.65,143.62,16.3772]
[1728086560288,6.9623,143.63,143.62,16.3772]
[1728086560797,17.3994,143.69,143.62,16.3772]
[1728086560798,6.9618,143.64,143.62,16.3772]
[1728086579001,6.9618,143.64,143.62,18.506231]
[1728086581420,6.9615,143.65,143.63,1.39225961]
[1728086581631,6.9615,143.65,143.62,18.506231]
[1728086583510,6.961,143.66,143.62,18.506231]
[1728086584016,17.3994,143.69,143.62,18.506231]
[1728086584017,6.9605,143.67,143.63,25.16900035]
[1728086584228,6.9605,143.67,143.63,23.776884]
[1728086584413,6.96,143.68,143.63,23.776884]
[1728086584727,6.96,143.68,143.64,6.9618]
[1728086584898,6.96,143.68,143.63,30.738984]
[1728086590140,17.3955,143.72,143.63,23.776884]
[1728086590425,6.9594,143.69,143.64,6.9614]
[1728086590628,6.959,143.7,143.66,23.776884]
[1728086591110,6.959,143.7,143.66,30.737584]
[1728086592121,6.9585,143.71,143.66,30.737584]
[1728086592521,6.9585,143.71,143.67,15.4926]
[1728086592948,6.9585,143.71,143.7,7.0]
[1728086596054,6.958,143.72,143.7,7.0]
[1728086596355,17.3918,143.75,143.7,7.0]
[1728086596640,6.9576,143.73,143.7,7.0]
[1728086597143,17.47149,143.78,143.69,23.776884]
[1728086598126,6.9578,143.73,143.69,23.776884]
[1728086599751,17.47149,143.78,143.69,23.776884]
[1728086599944,6.9581,143.72,143.69,23.776884]
[1728086601826,6.9575,143.73,143.7,23.776884]
[1728086602227,6.9571,143.74,143.7,23.776884]
[1728086603450,6.9575,143.73,143.7,23.776884]
[1728086604155,6.9571,143.74,143.7,23.776884]
[1728086608137,6.9571,143.74,143.7,30.735684]
[1728086608755,6.9565,143.75,143.71,22.94763531]
[1728086609058,6.9565,143.75,143.71,21.5563]
[1728086611046,6.9565,143.75,143.72,1.3912795]
[1728086611454,6.9561,143.76,143.72,23.776884]
[1728086612046,6.9555,143.77,143.73,6.9574]
[1728086612243,24.3718,143.82,143.74,1.39110484]
[1728086612448,6.9559,143.77,143.74,1.39110484]
[1728086613154,6.9559,143.77,143.75,1.39109254]
[1728086613347,6.9559,143.77,143.73,1.39109243]
[1728086617175,6.9553,143.78,143.74,23.776884]
[1728086617682,6.9553,143.78,143.74,6.9568]
[1728086618055,6.9555,143.77,143.73,6.9574]
[1728086618471,6.9555,143.77,143.72,48.255074]
[1728086618854,6.956,143.76,143.72,48.129584]
[1728086619252,6.956,143.76,143.72,41.171684]
[1728086620369,6.956,143.76,143.72,48.129484]
[1728086625178,6.9556,143.77,143.72,48.129484]
[1728086625853,6.9552,143.78,143.73,6.9572]
[1728086626665,6.9552,143.78,143.74,23.776884]
[1728086628881,21.81663763,143.82,143.74,6.9568]
[1728086629062,6.9551,143.78,143.74,6.9568]
[1728086629391,17.3845,143.81,143.72,17.3948]
[1728086629587,6.9565,143.75,143.72,17.3948]
[1728086631165,21.81663763,143.82,143.74,17.392]
[1728086631166,6.9549,143.79,143.74,17.392]
[1728086631387,6.9552,143.78,143.74,17.392]
[1728086632776,6.9556,143.77,143.74,17.392]
[1728086635395,24.3715,143.82,143.71,15.4926]
[1728086635396,24.027864,143.81,143.71,15.4926]
[1728086635574,24.027864,143.81,143.68,15.7065]
[1728086635575,6.9579,143.72,143.68,15.7065]
[1728086635758,6.9579,143.72,143.68,22.6663]
[1728086636583,17.3907,143.76,143.68,22.6663]
[1728086636584,6.9576,143.73,143.68,22.6663]
[1728086636800,6.9576,143.73,143.69,23.776884]
[1728086636972,6.9589,143.71,143.68,15.7065]
[1728086639094,6.9589,143.71,143.67,23.7646]
[1728086639582,6.959,143.7,143.67,6.3643]
[1728086640283,17.3907,143.76,143.67,6.3643]
[1728086640510,6.9584,143.71,143.67,6.3643]
[1728086640989,6.9579,143.72,143.68,23.776884]
[1728086641508,6.9579,143.72,143.68,30.736684]
[1728086641795,14.82863763,143.78,143.7,17.3967]
[1728086642106,10.5208,143.79,143.7,17.3967]
[1728086642793,6.9566,143.75,143.7,24.3556]
[1728086643198,6.9566,143.75,143.71,23.776884]
[1728086643576,6.9566,143.75,143.71,30.735184]
[1728086644190,4.2103,143.79,143.71,30.735184]
[1728086644384,6.9559,143.77,143.72,6.9579]
[1728086644584,6.9559,143.77,143.73,1.39123511]
[1728086645807,6.9559,143.77,143.74,1.39123511]
[1728086646299,6.9552,143.78,143.74,1.39123511]
[1728086646690,6.9546,143.79,143.74,8.34793511]
[1728086647300,6.9551,143.78,143.74,8.34793511]
[1728086647485,6.9551,143.78,143.74,22.6632]
[1728086647802,26.02693763,143.82,143.74,22.6632]
[1728086647803,6.9546,143.79,143.75,1.39097872]
[1728086649919,6.9546,143.79,143.74,22.6632]
[1728086650603,26.02693763,143.82,143.74,22.6632]
[1728086650906,6.9551,143.78,143.74,22.6632]
[1728086651704,14.82863763,143.82,143.77,30.243084]
[1728086651913,6.988,143.85,143.78,1.39066758]
[1728086652093,6.954,143.81,143.78,1.39066758]
[1728086652423,6.988,143.85,143.77,6.4662]
[1728086652424,6.9542,143.8,143.77,6.4662]
[1728086652710,17.3804,143.84,143.77,6.4662]
[1728086653206,17.3804,143.84,143.74,33.0986]
[1728086653415,0.12549,143.83,143.74,33.0986]
[1728086653721,17.3838,143.82,143.74,15.7065]
[1728086654185,24.027864,143.84,143.74,33.0986]
[1728086654692,6.9551,143.78,143.74,33.0986]
[1728086655313,0.25098,143.84,143.74,33.0986]
[1728086655523,6.9547,143.79,143.74,40.0555]
[1728086659191,6.9547,143.79,143.75,23.776884]
[1728086660709,6.9547,143.79,143.75,30.733284]
[1728086662027,6.9541,143.8,143.76,6.9559]
[1728086662195,21.86395163,143.85,143.78,15.4376]
[1728086662400,6.9526,143.83,143.78,22.3925]
[1728086662593,19.44292851,143.88,143.74,0.12549]
[1728086662594,45.9555,143.86,143.74,15.4376]
[1728086662917,17.3812,143.84,143.74,15.4376]
[1728086663094,6.9556,143.77,143.74,15.4376]
[1728086663294,6.955,143.79,143.74,22.3945]
[1728086663614,0.12549,143.83,143.74,15.4376]
[1728086663805,6.9551,143.78,143.74,15.4376]
[1728086664003,24.027864,143.83,143.74,15.4376]
[1728086664196,6.956,143.76,143.74,15.4376]
[1728086664611,6.9554,143.78,143.74,15.4376]
[1728086666314,6.9556,143.77,143.74,15.4376]
[1728086669901,0.12549,143.81,143.74,16.82877062]
[1728086670105,6.9552,143.78,143.74,16.82877062]
[1728086671023,6.9552,143.78,143.74,15.4376]
[1728086671225,6.9547,143.79,143.74,15.4376]
[1728086671404,6.9551,143.78,143.74,22.3945]
[1728086673531,6.1493,143.84,143.75,23.776884]
[1728086673741,6.9536,143.81,143.76,1.3908899]
[1728086674226,6.9536,143.81,143.76,6.9559]
[1728086674925,6.9536,143.81,143.75,23.776884]
[1728086675225,6.9536,143.81,143.77,6.9554]
[1728086678327,6.9536,143.81,143.76,17.3895]
[1728086678328,18.20446876,143.85,143.79,23.776884]
[1728086678515,6.988,143.86,143.8,11.91737306]
[1728086678717,0.8554205,143.88,143.82,17.3816]
[1728086678909,6.9515,143.86,143.82,17.3816]
[1728086679103,0.8554205,143.88,143.81,6.9535]
[1728086679104,6.9518,143.85,143.81,6.9535]
[1728086679428,6.9527,143.83,143.78,29.3251]
[1728086679605,6.9532,143.82,143.78,29.3251]
[1728086679810,6.9527,143.83,143.78,29.3251]
[1728086680010,6.9539,143.81,143.78,22.3701]
[1728086680435,6.9527,143.83,143.79,6.9545]
[1728086682528,6.9522,143.84,143.8,30.730784]
[1728086682840,6.9522,143.84,143.8,6.9539]
[1728086683837,18.2314205,143.88,143.78,39.7569]
[1728086684132,6.9532,143.82,143.78,46.7118]
[1728086684534,6.9525,143.84,143.79,30.731284]
[1728086687137,18.2314205,143.88,143.81,6.9534]
[1728086687718,18.2314205,143.88,143.82,15.9853]
[1728086688037,6.9526,143.83,143.82,15.9853]
[1728086688925,6.9522,143.84,143.82,15.9853]
[1728086690741,6.9526,143.83,143.82,15.9853]
[1728086691830,6.9522,143.84,143.82,15.9853]
[1728086694339,18.2314205,143.88,143.82,15.9853]
[1728086694516,6.952,143.85,143.82,15.9853]
[1728086695745,6.9508,143.87,143.83,14.34640781]
[1728086696647,6.9508,143.87,143.83,12.9561]
[1728086697336,6.9508,143.87,143.83,6.0035]
[1728086697724,6.9508,143.87,143.84,1.39023093]
[1728086698452,6.9508,143.87,143.83,6.0035]
[1728086698839,6.9508,143.87,143.83,12.9561]
[1728086700236,6.9508,143.87,143.83,6.0035]
[1728086700440,6.9521,143.84,143.83,6.0035]
[1728086700647,0.8554205,143.88,143.83,6.0035]
[1728086700648,6.9516,143.86,143.83,6.0035]
[1728086702022,0.8554205,143.88,143.83,6.0035]
[1728086702224,17.3772,143.87,143.82,15.9853]
[1728086702427,6.9526,143.83,143.82,15.9853]
[1728086702642,6.9522,143.84,143.82,15.9853]
[1728086703029,6.952,143.85,143.82,15.9853]
[1728086703429,6.9523,143.84,143.82,15.9853]
[1728086703628,6.9526,143.83,143.82,15.9853]
[1728086705457,0.8554205,143.88,143.79,6.0035]
[1728086705769,6.9537,143.81,143.79,6.0035]
[1728086708068,6.9537,143.81,143.78,15.245]
[1728086717275,6.9532,143.82,143.78,15.245]
[1728086719151,6.9532,143.82,143.78,22.1999]
[1728086726649,6.9532,143.82,143.78,15.245]
[1728086727877,17.3798,143.85,143.78,15.245]
[1728086728050,6.9532,143.82,143.78,22.1996]
[1728086728662,6.9532,143.82,143.78,15.245]
[1728086730072,6.9532,143.82,143.78,17.371662]
[1728086731461,6.9527,143.83,143.79,1.39071856]
[1728086732546,6.9527,143.83,143.78,17.371662]
[1728086733093,6.9527,143.83,143.79,6.9544]
[1728086740087,6.9527,143.83,143.78,17.371662]
[1728086740301,6.9527,143.83,143.78,24.326562]
[1728086741383,6.9527,143.83,143.79,8.34516518]
[1728086744272,6.952,143.85,143.79,29.30333994]
[1728086744595,6.9513,143.86,143.82,6.9531]
[1728086744895,0.8554205,143.88,143.82,15.8493]
[1728086745074,7.8057205,143.88,143.84,6.9521]
[1728086748976,6.9509,143.87,143.83,24.3337]
[1728086750000,6.9509,143.87,143.83,17.3812]
[1728086750206,0.8554205,143.88,143.82,15.8493]
[1728086750500,6.9526,143.83,143.8,6.6409]
[1728086752176,6.9522,143.84,143.8,13.5949]
[1728086752494,6.952,143.85,143.81,6.9536]
[1728086752696,6.9513,143.86,143.82,6.9531]
[1728086753196,6.9513,143.86,143.81,6.9536]
[1728086759681,6.9517,143.85,143.81,6.9536]
[1728086759881,6.9517,143.85,143.8,13.5948]
[1728086760309,6.9522,143.84,143.8,13.5948]
[1728086761098,0.8554205,143.88,143.79,33.7891]
[1728086761099,6.9527,143.83,143.79,33.7891]
[1728086761305,18.2316205,143.88,143.79,16.4036]
[1728086761306,6.9533,143.82,143.79,16.4036]
[1728086761475,4.46128,143.85,143.78,2.126662]
[1728086761805,7.07999,143.79,143.78,2.126662]
[1728086762683,6.9545,143.79,143.78,2.126662]
[1728086763002,7.07999,143.79,143.78,2.126662]
[1728086764489,4.07999,143.79,143.78,2.126662]
[1728086764685,0.12549,143.79,143.78,2.126662]
[1728086765188,0.25098,143.79,143.78,2.126662]
[1728086766309,7.20548,143.79,143.78,2.126662]
[1728086768594,30.982364,143.79,143.78,2.126662]
[1728086769513,7.20548,143.79,143.78,2.126662]
[1728086770218,7.07999,143.79,143.78,2.126662]
[1728086770386,6.9545,143.79,143.78,2.126662]
[1728086773707,7.07999,143.79,143.78,2.126662]
[1728086784524,6.9545,143.79,143.78,2.126662]
[1728086792127,6.9542,143.8,143.78,2.126662]
[1728086793314,6.954,143.81,143.78,2.126662]
[1728086793632,6.9533,143.82,143.78,9.081462]
[1728086793814,6.9533,143.82,143.79,6.4583]
[1728086807848,6.9521,143.84,143.8,6.954]
[1728086808537,6.9521,143.84,143.79,13.4127]
[1728086809150,6.9527,143.83,143.79,13.4127]
[1728086809655,6.9541,143.8,143.79,6.4583]
[1728086811248,6.9541,143.8,143.78,2.126662]
[1728086811637,0.12549,143.83,143.78,2.126662]
[1728086811832,6.9545,143.79,143.78,2.126662]
[1728086825360,6.9532,143.82,143.78,2.126662]
[1728086825564,7.60620158,143.85,143.78,17.683862]
[1728086825565,6.954,143.81,143.78,17.683862]
[1728086825946,18.59102596,143.86,143.78,29.60167843]
[1728086826167,6.9528,143.83,143.79,1.39076795]
[1728086826351,6.9522,143.84,143.79,8.34496795]
[1728086827161,6.9517,143.85,143.8,6.954]
[1728086827366,6.9517,143.85,143.81,6.3153]
[1728086827765,6.9517,143.85,143.81,7.70582726]
[1728086828059,6.9513,143.86,143.81,13.2687]
[1728086828968,6.9507,143.87,143.82,6.9527]
[1728086829467,6.9513,143.86,143.82,6.9527]
[1728086829637,6.9513,143.86,143.81,6.3153]
[1728086829844,6.9513,143.86,143.81,13.2688]
[1728086831466,6.9517,143.85,143.81,13.2688]
[1728086831863,6.9517,143.85,143.81,6.3153]
[1728086834366,0.12549,143.87,143.81,6.3153]
[1728086836156,6.9528,143.83,143.81,6.3153]
[1728086836355,0.12549,143.87,143.81,6.3153]
[1728086836670,6.9522,143.84,143.81,6.3153]
[1728086840348,6.9527,143.83,143.81,6.3153]
[1728086841279,6.9522,143.84,143.81,6.3153]
[1728086844176,6.9528,143.83,143.81,6.3153]
[1728086844859,0.25098,143.87,143.81,6.3153]
[1728086845070,6.9528,143.83,143.81,6.3153]
[1728086847768,6.9531,143.82,143.78,24.638762]
[1728086848976,6.9537,143.81,143.78,17.683862]
[1728086850461,6.9541,143.8,143.78,17.683862]
[1728086850883,6.9537,143.81,143.78,17.683862]
[1728086856372,6.9532,143.82,143.78,17.683862]
[1728086859796,6.9527,143.83,143.79,6.9544]
[1728086860863,0.12549,143.87,143.78,45.59810434]
[1728086861064,6.9522,143.84,143.8,6.954]
[1728086863697,0.25098,143.87,143.78,35.071162]
[1728086863901,6.9528,143.83,143.79,6.9544]
[1728086866194,0.12549,143.87,143.79,6.9544]
[1728086866387,6.9522,143.84,143.79,6.9544]
[1728086867807,0.25098,143.87,143.79,6.9544]
[1728086868006,6.9527,143.83,143.79,6.9544]
[1728086870904,6.9523,143.84,143.8,6.9538]
[1728086871584,6.9523,143.84,143.79,6.9544]
[1728086871774,0.12549,143.87,143.79,6.9544]
[1728086871775,6.9527,143.83,143.79,6.9544]
[1728086876093,6.9522,143.84,143.8,6.9539]
[1728086876292,6.9522,143.84,143.81,1.39054509]
[1728086876608,0.8554205,143.88,143.82,22.8831]
[1728086876609,6.9512,143.86,143.82,22.8831]
[1728086876797,6.9512,143.86,143.82,15.9301]
[1728086878019,6.9518,143.85,143.82,15.9301]
[1728086878321,6.9523,143.84,143.82,15.9301]
[1728086880319,0.8554205,143.88,143.82,15.9301]
[1728086880320,6.9516,143.85,143.82,15.9301]
[1728086884605,0.8554205,143.88,143.82,15.9301]
[1728086884813,6.9522,143.84,143.82,15.9301]
[1728086886629,6.9522,143.84,143.82,18.056171]
[1728086895044,6.9513,143.86,143.82,25.009071]
[1728086895221,6.9507,143.87,143.83,6.9526]
[1728086895653,6.9507,143.87,143.82,42.91821334]
[1728086897046,6.9507,143.87,143.82,32.391271]
[1728086897251,6.9507,143.87,143.83,6.9526]
[1728086905943,7.8057205,143.88,143.83,6.9526]
[1728086909548,7.8057205,143.88,143.84,6.9521]
[1728086913561,6.9507,143.87,143.83,6.9525]
[1728086914976,6.952,143.85,143.82,15.008771]
[1728086915270,0.8554205,143.88,143.82,15.008771]
[1728086915473,6.9513,143.86,143.82,21.961671]
[1728086915961,6.951,143.87,143.82,21.961671]
[1728086916268,6.9512,143.86,143.82,21.961671]
[1728086918345,6.9508,143.87,143.82,21.961671]
[1728086922149,7.8057205,143.88,143.82,15.008771]
[1728086922348,7.8057205,143.88,143.84,6.9519]
[1728086923277,0.8554205,143.88,143.85,6.9515]
[1728086923771,7.8056205,143.88,143.84,6.952]
[1728086926646,7.8056205,143.88,143.83,17.381]
[1728086926853,0.8554205,143.88,143.83,17.381]
[1728086928061,6.9513,143.86,143.83,17.381]
[1728086929595,6.9517,143.85,143.82,15.008771]
[1728086929773,6.9526,143.83,143.82,15.008771]
[1728086930685,6.9526,143.83,143.82,2.126071]
[1728086936193,6.9521,143.84,143.82,1.626071]
[1728086936869,19.10498828,143.88,143.82,1.626071]
[1728086937072,6.9507,143.87,143.83,6.9525]
[1728086938587,0.8554205,143.88,143.84,6.9521]
[1728086939772,0.8554205,143.88,143.85,6.9515]
[1728086940673,0.8554205,143.88,143.85,6.4515]
[1728086947098,0.8554205,143.88,143.82,17.030471]
[1728086947282,6.9517,143.85,143.82,17.030471]
[1728086947606,0.8554205,143.88,143.82,17.030471]
[1728086947796,6.9517,143.85,143.82,17.030471]
[1728086949105,0.8554205,143.88,143.82,17.030471]
[1728086949307,6.9512,143.86,143.82,17.030471]
[1728086951887,6.9507,143.87,143.83,6.9525]
[1728086952090,0.8554205,143.88,143.83,6.9525]
[1728086952420,7.8056205,143.88,143.84,6.952]
[1728086953213,7.8056205,143.88,143.83,6.9526]
[1728086956417,0.8554205,143.88,143.82,44.93961334]
[1728086957007,7.8058205,143.88,143.84,6.952]
[1728086958325,7.8058205,143.88,143.83,6.9525]
[1728086970549,6.9508,143.87,143.83,6.9525]
[1728086970868,6.9517,143.85,143.82,34.412671]
[1728086971751,0.8554205,143.88,143.82,34.412671]
[1728086972046,6.9513,143.86,143.82,34.412671]
[1728086974935,6.9513,143.86,143.82,41.365571]
[1728086981139,0.8554205,143.88,143.84,17.38]
[1728086981324,0.8554205,143.88,143.85,6.9516]
[1728086981943,0.8554205,143.88,143.86,6.9511]
[1728086983049,0.8554205,143.88,143.87,1.39005409]
[1728086983240,0.8554205,143.88,143.87,40.60822457]
[1728086983640,0.8554205,143.88,143.87,39.21834234]
[1728086984565,6.9464,143.96,143.91,6.9486]
[1728086984734,6.9464,143.96,143.92,1.38948333]
[1728086985057,6.9464,143.96,143.91,6.9486]
[1728086985647,6.9459,143.97,143.92,6.9482]
[1728086985848,6.9454,143.98,143.93,6.9477]
[1728086986161,6.9454,143.98,143.94,1.38929392]
[1728086987035,6.97,143.99,143.94,1.38929392]
[1728086987237,6.9459,143.97,143.93,6.9477]
[1728086987645,6.9459,143.97,143.92,21.7407]
[1728086987960,6.9459,143.97,143.92,28.6889]
[1728086988167,0.66695171,143.99,143.92,21.7407]
[1728086988342,6.9464,143.96,143.92,21.7407]
[1728086988731,0.12549,143.98,143.92,21.7407]
[1728086988934,6.9472,143.95,143.92,21.7407]
[1728086989739,0.12549,143.99,143.92,21.7407]
[1728086989944,6.9463,143.96,143.92,21.7407]